bitfinex/quotes_SOLUSD_20260214
["timestamp","ask_amount","ask_price","bid_price","bid_amount"]
[1771069286491,0.48186462,86.899,86.861,0.49626692]
[1771069287295,0.48186462,86.897,86.862,11.5125141]
[1771069287612,0.48186462,86.897,86.863,0.49626692]
[1771069289608,0.48186462,86.895,86.864,11.51224903]
[1771069289811,0.48186462,86.889,86.855,0.49626692]
[1771069290006,0.48186462,86.879,86.849,0.49626692]
[1771069290307,0.48186462,86.889,86.851,0.49626692]
[1771069290510,0.48186462,86.889,86.844,0.49626692]
[1771069290713,0.48186462,86.879,86.838,11.51569589]
[1771069291008,0.48186462,86.879,86.839,0.49626692]
[1771069291595,0.46779566,86.869,86.833,62.91624979]
[1771069291791,55.54,86.884,86.82,8.48777707]
[1771069291792,0.46779566,86.859,86.823,0.47923781]
[1771069292515,0.46779566,86.859,86.831,0.47923781]
[1771069293317,0.46779566,86.881,86.841,0.47923781]
[1771069293521,11.51028776,86.879,86.841,0.47923781]
[1771069293826,0.46779566,86.878,86.851,0.47923781]
[1771069294194,0.46779566,86.878,86.852,11.51383963]
[1771069295001,0.46779566,86.878,86.851,0.47923781]
[1771069295510,0.46779566,86.869,86.831,0.47923781]
[1771069295818,0.46779566,86.869,86.835,0.47923781]
[1771069296895,0.46779566,86.869,86.837,0.47923781]
[1771069297097,0.46779566,86.878,86.841,0.47923781]
[1771069298800,11.51052637,86.877,86.841,0.47923781]
[1771069299017,0.46779566,86.876,86.841,0.47923781]
[1771069299897,11.51052637,86.877,86.836,11.51596038]
[1771069299898,0.46779566,86.869,86.836,11.51596038]
[1771069300106,0.46779566,86.869,86.837,0.48645374]
[1771069300719,0.46918581,86.859,86.83,11.51665243]
[1771069301099,0.46918581,86.857,86.831,0.48645374]
[1771069301917,0.46918581,86.867,86.831,0.48645374]
[1771069302223,0.46918581,86.866,86.831,0.48645374]
[1771069303103,0.46918581,86.866,86.833,0.48645374]
[1771069303306,0.46918581,86.864,86.833,0.48645374]
[1771069305121,0.46918581,86.864,86.835,0.48645374]
[1771069305298,55.52,86.868,86.835,0.48645374]
[1771069305498,55.52,86.868,86.841,0.48645374]
[1771069306223,0.46918581,86.867,86.834,12.0026801]
[1771069306404,0.46918581,86.867,86.835,0.48645374]
[1771069307324,0.46918581,86.865,86.837,0.48645374]
[1771069307624,0.46918581,86.872,86.841,0.48645374]
[1771069307819,55.54,86.878,86.841,0.48645374]
[1771069308006,0.46918581,86.88,86.851,0.48645374]
[1771069309707,0.46918581,86.88,86.853,0.48645374]
[1771069309708,11.51026139,86.879,86.853,0.48645374]
[1771069310113,11.9794472,86.879,86.853,0.48645374]
[1771069310806,11.9794472,86.879,86.852,11.51383963]
[1771069310807,0.46918581,86.878,86.852,11.51383963]
[1771069311001,0.46918581,86.878,86.848,11.51434599]
[1771069312229,0.46918581,86.876,86.848,11.51434599]
[1771069312732,0.46918581,86.876,86.842,11.51512954]
[1771069312917,0.46918581,86.869,86.831,11.51662424]
[1771069313723,0.46918581,86.869,86.832,0.48645374]
[1771069314226,0.46918581,86.867,86.833,11.51635898]
[1771069314441,0.46918581,86.867,86.833,12.00281272]
[1771069314630,0.46918581,86.867,86.833,11.51635898]
[1771069314823,11.51171892,86.868,86.833,11.51635898]
[1771069314824,0.46918581,86.859,86.833,11.51635898]
[1771069315218,0.46918581,86.859,86.823,11.5176854]
[1771069315434,55.54,86.858,86.823,11.5176854]
[1771069315639,0.46918581,86.849,86.823,11.5176854]
[1771069316912,0.46918581,86.839,86.801,0.48645374]
[1771069317324,0.46918581,86.839,86.801,12.00705834]
[1771069317820,0.46918581,86.839,86.802,0.48645374]
[1771069318333,11.51569589,86.838,86.802,0.48645374]
[1771069318537,0.46918581,86.837,86.804,0.48645374]
[1771069318936,0.46918581,86.829,86.799,11.52086917]
[1771069319542,0.46918581,86.829,86.8,0.48645374]
[1771069320326,55.56,86.836,86.803,0.48645374]
[1771069321037,0.46918581,86.834,86.803,0.48645374]
[1771069321943,8.48777707,86.83,86.803,0.48645374]
[1771069322129,0.48291434,86.829,86.797,11.97336732]
[1771069322442,0.48291434,86.828,86.798,0.45232433]
[1771069323037,55.58,86.832,86.801,0.45232433]
[1771069323235,67.09649566,86.832,86.801,0.45232433]
[1771069323644,67.57941,86.832,86.801,0.45232433]
[1771069323945,11.99941,86.832,86.801,0.45232433]
[1771069324444,0.48291434,86.819,86.792,0.45232433]
[1771069324642,0.48291434,86.817,86.791,11.52193199]
[1771069324833,0.48291434,86.809,86.779,0.45232433]
[1771069325940,0.48291434,86.809,86.779,11.9758496]
[1771069326543,0.48291434,86.809,86.781,11.52325969]
[1771069329148,0.48291434,86.807,86.781,11.52325969]
[1771069330127,0.48291434,86.807,86.782,0.45232433]
[1771069330753,55.58,86.81,86.782,0.45232433]
[1771069331140,55.58,86.81,86.784,0.45232433]
[1771069331336,55.58,86.81,86.79,3.40186922]
[1771069331544,11.51767075,86.824,86.791,0.45232433]
[1771069332051,0.48291434,86.819,86.791,0.45232433]
[1771069332954,0.48291434,86.809,86.784,0.45232433]
[1771069334554,0.48291434,86.799,86.773,11.52425636]
[1771069334859,11.5196756,86.808,86.751,0.45232433]
[1771069334860,0.48291434,86.789,86.751,0.45232433]
[1771069336451,55.62,86.799,86.761,0.45232433]
[1771069336641,0.48291434,86.809,86.771,0.45232433]
[1771069336980,55.62,86.811,86.771,0.45232433]
[1771069337261,0.48291434,86.814,86.781,0.45232433]
[1771069337752,0.48291434,86.809,86.764,0.45232433]
[1771069337936,0.48291434,86.799,86.764,0.45232433]
[1771069338860,0.48291434,86.798,86.766,0.45232433]
[1771069340650,0.48291434,86.804,86.771,0.45232433]
[1771069341338,55.64,86.805,86.773,0.45232433]
[1771069341534,3.40186922,86.8,86.772,11.97677922]
[1771069341734,0.48291434,86.799,86.772,11.97677922]
[1771069342149,0.48291434,86.799,86.768,0.45232433]
[1771069342359,0.48291434,86.799,86.767,11.52499821]
[1771069342360,3.40186922,86.79,86.762,11.52573017]
[1771069342543,0.48291434,86.789,86.762,11.52573017]
[1771069343074,0.48291434,86.789,86.762,11.9780545]
[1771069343233,0.48291434,86.789,86.763,0.45232433]
[1771069344358,11.52233027,86.788,86.763,11.97788068]
[1771069344543,0.48291434,86.787,86.763,11.52555635]
[1771069346366,0.48291434,86.785,86.757,11.97877176]
[1771069346569,0.48291434,86.785,86.751,11.52713957]
[1771069346741,0.48291434,86.779,86.751,11.52713957]
[1771069346938,0.48291434,86.779,86.751,11.9794639]
[1771069348938,0.48291434,86.777,86.751,11.9794639]
[1771069350055,11.52365807,86.778,86.749,17.04207485]
[1771069350056,0.48291434,86.769,86.749,17.04207485]
[1771069352861,0.46101818,86.767,86.749,17.04207485]
[1771069353748,55.68,86.775,86.75,0.47743391]
[1771069353749,0.46101818,86.774,86.75,0.47743391]
[1771069354146,11.52414687,86.775,86.721,28.8278997]
[1771069354147,3.40417462,86.76,86.721,28.8278997]
[1771069354348,0.46101818,86.749,86.722,11.53097388]
[1771069355467,0.46101818,86.749,86.725,11.53058105]
[1771069356349,0.46101818,86.749,86.726,0.47743391]
[1771069357973,11.5241512,86.775,86.741,0.47743391]
[1771069358181,0.46101818,86.774,86.741,0.47743391]
[1771069361064,0.49915783,86.772,86.743,0.46776754]
[1771069362563,11.5245877,86.771,86.744,11.52817485]
[1771069362760,11.5245877,86.771,86.745,0.46776754]
[1771069363074,0.49915783,86.769,86.745,0.46776754]
[1771069363278,0.49915783,86.769,86.74,0.46776754]
[1771069364265,0.49915783,86.776,86.742,0.46776754]
[1771069364572,0.49915783,86.774,86.742,0.46776754]
[1771069369281,0.49915783,86.772,86.744,0.46776754]
[1771069371186,0.49915783,86.779,86.753,0.46776754]
[1771069371693,11.52365807,86.778,86.753,0.46776754]
[1771069372003,0.49915783,86.777,86.753,0.46776754]
[1771069373781,0.49915783,86.786,86.755,0.46776754]
[1771069374469,0.49915783,86.786,86.761,0.46776754]
[1771069375081,0.49915783,86.791,86.761,0.46776754]
[1771069376693,0.49915783,86.789,86.763,0.46776754]
[1771069378775,11.52179205,86.793,86.765,0.46776754]
[1771069379494,12.02094988,86.793,86.765,0.46776754]
[1771069380284,0.49915783,86.815,86.781,0.02927232]
[1771069380487,0.49915783,86.814,86.781,0.02927232]
[1771069380664,0.49915783,86.814,86.79,14.92620558]
[1771069380867,0.49915783,86.814,86.791,0.02927232]
[1771069381067,0.49915783,86.826,86.791,0.02927232]
[1771069382196,0.49915783,86.826,86.8,3.43344694]
[1771069382493,0.49915783,86.826,86.79,11.52203096]
[1771069382494,0.49915783,86.826,86.791,0.02927232]
[1771069382676,11.51742009,86.825,86.791,0.02927232]
[1771069382875,0.49303369,86.824,86.791,0.02927232]
[1771069384094,0.49303369,86.824,86.79,14.84545437]
[1771069384472,3.40417462,86.81,86.771,28.81130834]
[1771069384688,0.5,86.809,86.771,28.81130834]
[1771069385186,0.5,86.809,86.762,11.52578317]
[1771069385490,0.5,86.807,86.77,3.40417462]
[1771069387587,0.5,86.807,86.771,11.5245877]
[1771069388676,0.5,86.807,86.771,40.33605696]
[1771069391096,0.5,86.799,86.771,11.5245877]
[1771069392689,0.5,86.797,86.762,11.52578317]
[1771069395301,0.5,86.797,86.762,40.34024111]
[1771069396701,0.5,86.795,86.762,40.34024111]
[1771069402511,0.5,86.793,86.762,11.52578317]
[1771069404311,0.5,86.791,86.762,11.52578317]
[1771069407103,0.5,86.798,86.77,3.40417462]
[1771069409012,0.5,86.798,86.771,11.5245877]
[1771069410491,0.5,86.798,86.743,50.78]
[1771069410492,0.5,86.796,86.689,61.9]
[1771069410694,0.5,86.789,86.75,3.40165952]
[1771069410898,0.5,86.787,86.751,11.52724464]
[1771069413516,0.5,86.785,86.743,28.82052773]
[1771069413917,0.5,86.783,86.743,28.82052773]
[1771069414999,0.5,86.783,86.738,11.5289723]
[1771069415000,0.5,86.769,86.738,11.5289723]
[1771069415414,0.5,86.769,86.732,40.35400558]
[1771069415919,0.5,86.783,86.75,3.40165952]
[1771069416101,0.5,86.789,86.76,3.40165952]
[1771069416520,0.5,86.789,86.75,3.40165952]
[1771069418011,0.5,86.788,86.75,3.40165952]
[1771069418210,0.5,86.788,86.74,3.40165952]
[1771069419710,0.5,86.779,86.741,40.35000748]
[1771069420513,0.5,86.789,86.75,3.40165952]
[1771069421603,0.5,86.788,86.751,11.52724464]
[1771069422020,0.5,86.788,86.751,40.34535624]
[1771069422309,0.5,86.788,86.76,3.40165952]
[1771069423629,0.5,86.794,86.761,40.34070607]
[1771069424408,55.66,86.796,86.77,3.40165952]
[1771069424609,0.5,86.805,86.77,3.40165952]
[1771069425221,0.5,86.805,86.761,40.34070607]
[1771069425536,0.5,86.805,86.77,3.40165952]
[1771069426823,0.5,86.803,86.76,3.40165952]
[1771069428020,0.5,86.801,86.761,11.52591602]
[1771069428634,0.5,86.789,86.761,11.52591602]
[1771069430620,0.5,86.789,86.75,3.40165952]
[1771069432729,0.5,86.789,86.751,40.34535624]
[1771069433636,55.66,86.792,86.76,3.40165952]
[1771069434516,55.66,86.792,86.751,40.34535624]
[1771069434517,55.66,86.792,86.77,3.40165952]
[1771069434717,11.52063427,86.801,86.771,11.5245877]
[1771069434911,0.5,86.8,86.771,11.5245877]
[1771069435931,0.5,86.798,86.771,11.5245877]
[1771069436237,0.5,86.807,86.771,11.5245877]
[1771069438728,0.5,86.805,86.771,11.5245877]
[1771069440216,0.5,86.803,86.771,11.5245877]
[1771069440932,0.5,86.799,86.771,11.5245877]
[1771069443437,0.5,86.797,86.761,11.52591602]
[1771069443636,3.40165952,86.78,86.74,3.40165952]
[1771069443815,0.5,86.779,86.74,3.40165952]
[1771069444224,0.5,86.779,86.75,3.40165952]
[1771069444632,0.5,86.779,86.74,3.40165952]
[1771069445014,0.5,86.779,86.741,40.35000748]
[1771069445239,0.5,86.779,86.75,3.40165952]
[1771069447238,0.5,86.785,86.751,40.34535624]
[1771069447534,0.5,86.792,86.76,3.40165952]
[1771069447740,11.52181751,86.792,86.76,3.40165952]
[1771069447933,0.5,86.791,86.76,3.40165952]
[1771069448741,0.5,86.791,86.761,11.52591602]
[1771069449231,0.5,86.789,86.761,11.52591602]
[1771069451143,0.5,86.789,86.76,3.40165952]
[1771069451344,0.5,86.789,86.737,4.61729252]
[1771069451345,0.5,86.787,86.75,3.40165952]
[1771069452338,0.5,86.785,86.751,11.52724464]
[1771069452844,0.5,86.791,86.751,40.34535624]
[1771069453045,0.5,86.791,86.76,3.40165952]
[1771069454044,0.5,86.791,86.751,40.34535624]
[1771069454547,0.5,86.789,86.751,40.34535624]
[1771069456141,0.5,86.789,86.751,11.52724464]
[1771069456842,0.5,86.779,86.741,40.34986407]
[1771069457034,0.5,86.779,86.741,102.24986407]
[1771069459046,0.5,86.777,86.741,102.24986407]
[1771069460642,55.7,86.793,86.741,102.24986407]
[1771069460643,55.7,86.793,86.77,3.40165952]
[1771069460827,55.7,86.793,86.771,11.5245877]
[1771069461842,0.5,86.792,86.771,11.5245877]
[1771069462243,56.2,86.793,86.771,11.5245877]
[1771069464249,55.7,86.793,86.771,11.5245877]
[1771069464452,0.5,86.812,86.78,3.40165952]
[1771069464655,0.5,86.81,86.78,3.40165952]
[1771069464861,0.5,86.81,86.771,40.33605696]
[1771069465031,0.5,86.809,86.771,11.5245877]
[1771069468853,0.5,86.807,86.771,11.5245877]
[1771069470358,0.5,86.805,86.771,11.5245877]
[1771069471339,0.5,86.803,86.771,11.5245877]
[1771069472043,0.5,86.789,86.763,11.52554419]
[1771069472758,0.32774318,86.789,86.763,11.52554419]
[1771069472955,0.32774318,86.789,86.753,11.52688206]
[1771069473152,55.78,86.795,86.767,0.17225682]
[1771069473453,55.78,86.795,86.771,0.17225682]
[1771069473655,55.8,86.801,86.771,0.17225682]
[1771069474856,0.45012823,86.8,86.762,0.17225682]
[1771069475244,0.45012823,86.8,86.764,0.17225682]
[1771069475441,0.45012823,86.8,86.771,0.17225682]
[1771069476161,55.8,86.801,86.78,3.40197909]
[1771069476340,0.45012823,86.8,86.78,0.17225682]
[1771069476548,0.45012823,86.8,86.771,0.17225682]
[1771069477750,0.45012823,86.8,86.773,0.17225682]
[1771069478666,0.45012823,86.8,86.772,11.52445489]
[1771069478860,0.45012823,86.8,86.773,0.17225682]
[1771069479746,37.73460897,86.801,86.775,0.17225682]
[1771069480462,28.79613662,86.818,86.781,0.48170499]
[1771069480463,55.86,86.818,86.781,0.48170499]
[1771069481868,0.47329256,86.815,86.783,0.48170499]
[1771069483866,0.47329256,86.825,86.791,0.48170499]
[1771069484078,0.47329256,86.835,86.801,0.48170499]
[1771069485345,0.47329256,86.829,86.801,0.48170499]
[1771069486065,0.47329256,86.829,86.79,3.40197909]
[1771069486066,0.47329256,86.827,86.789,0.48170499]
[1771069487569,0.47329256,86.827,86.791,0.48170499]
[1771069489373,0.47329256,86.827,86.79,3.40197909]
[1771069489374,0.47329256,86.827,86.793,0.48170499]
[1771069489573,0.47329256,86.809,86.755,0.48170499]
[1771069489749,0.47329256,86.809,86.77,3.40197909]
[1771069489949,0.47329256,86.829,86.791,0.48170499]
[1771069490165,0.47329256,86.828,86.801,0.48170499]
[1771069491050,11.51648049,86.833,86.801,0.48170499]
[1771069491252,11.51648049,86.833,86.811,0.48170499]
[1771069491448,0.47329256,86.837,86.811,0.48170499]
[1771069492052,11.51596112,86.836,86.811,0.48170499]
[1771069492968,0.47329256,86.837,86.813,0.48170499]
[1771069493874,0.47329256,86.847,86.815,0.48170499]
[1771069494173,0.47329256,86.846,86.815,0.48170499]
[1771069494371,0.47329256,86.829,86.786,0.48170499]
[1771069494873,0.47329256,86.829,86.791,0.48170499]
[1771069495872,0.47329256,86.827,86.793,0.48170499]
[1771069498372,0.47329256,86.826,86.795,0.48170499]
[1771069499978,0.47329256,86.826,86.794,11.52153374]
[1771069500359,0.47329256,86.826,86.793,0.48170499]
[1771069501161,55.86,86.839,86.782,40.33094419]
[1771069501162,0.4890676,86.835,86.801,0.46897876]
[1771069501363,0.4890676,86.838,86.801,0.46897876]
[1771069502166,0.4890676,86.838,86.811,0.46897876]
[1771069502573,0.4890676,86.838,86.813,0.46897876]
[1771069503070,0.4890676,86.837,86.805,0.46897876]
[1771069503258,0.4890676,86.837,86.806,11.51994101]
[1771069503671,0.4890676,86.829,86.801,11.5204858]
[1771069503981,3.40197909,86.82,86.782,0.46897876]
[1771069504182,0.4890676,86.819,86.783,0.46897876]
[1771069504382,40.30497406,86.838,86.782,11.52312691]
[1771069504383,0.4890676,86.837,86.791,0.46897876]
[1771069504567,3.40197909,86.84,86.79,3.40197909]
[1771069504568,0.4890676,86.835,86.793,0.46897876]
[1771069504974,0.4890676,86.835,86.801,0.46897876]
[1771069507268,0.4890676,86.833,86.803,0.46897876]
[1771069509613,0.4890676,86.833,86.805,0.46897876]
[1771069509993,0.4890676,86.839,86.805,0.46897876]
[1771069511288,0.4890676,86.839,86.804,11.52020644]
[1771069511481,0.4890676,86.839,86.805,0.46897876]
[1771069511888,0.4890676,86.839,86.807,0.46897876]
[1771069514587,11.51569589,86.838,86.808,11.5196756]
[1771069514791,0.4890676,86.837,86.809,0.46897876]
[1771069517681,0.4890676,86.837,86.81,11.5194102]
[1771069519277,0.4890676,86.837,86.811,0.46897876]
[1771069519693,11.51596112,86.836,86.811,0.46897876]
[1771069519897,0.4890676,86.835,86.811,0.46897876]
[1771069520099,0.4890676,86.835,86.805,0.46897876]
[1771069523804,0.4890676,86.835,86.806,11.51994101]
[1771069524208,0.4890676,86.835,86.806,11.98891977]
[1771069524625,0.4890676,86.835,86.807,0.46897876]
[1771069526011,0.4890676,86.835,86.809,0.46897876]
[1771069526203,0.4890676,86.835,86.808,11.5196756]
[1771069526805,0.4890676,86.835,86.808,11.98865436]
[1771069527003,0.4890676,86.835,86.803,28.80084789]
[1771069527414,0.4890676,86.835,86.804,0.46897876]
[1771069530517,0.4890676,86.835,86.803,28.80084789]
[1771069530518,0.4890676,86.835,86.806,0.46897876]
[1771069532143,0.47079887,86.833,86.806,0.46897876]
[1771069532617,0.47079887,86.833,86.807,11.97591611]
[1771069532815,0.47079887,86.831,86.808,0.4561078]
[1771069535511,3.87004359,86.85,86.81,0.4561078]
[1771069535720,0.47079887,86.847,86.811,0.4561078]
[1771069536113,0.47079887,86.857,86.821,0.4561078]
[1771069536312,3.39924472,86.87,86.831,0.4561078]
[1771069536313,11.5116178,86.869,86.831,0.4561078]
[1771069536618,3.49924472,86.88,86.841,0.4561078]
[1771069536619,0.47079887,86.872,86.841,0.4561078]
[1771069536816,0.47079887,86.872,86.84,3.39924472]
[1771069537500,0.47079887,86.872,86.85,3.39924472]
[1771069537705,0.1,86.88,86.851,11.5139722]
[1771069538312,0.57079887,86.88,86.851,11.5139722]
[1771069538713,0.57079887,86.88,86.852,0.16627725]
[1771069539022,0.1,86.88,86.861,0.16627725]
[1771069539718,0.1,86.88,86.862,11.5125141]
[1771069539921,0.1,86.88,86.861,0.16627725]
[1771069540322,0.46794892,86.879,86.846,50.92]
[1771069540625,0.46794892,86.869,86.831,11.51662424]
[1771069540999,0.46794892,86.869,86.831,11.68290149]
[1771069541200,0.46794892,86.869,86.832,0.16627725]
[1771069541809,0.46794892,86.867,86.833,11.51635898]
[1771069542625,0.46794892,86.867,86.834,0.16627725]
[1771069542819,0.46794892,86.867,86.835,11.51609374]
[1771069543223,0.46794892,86.867,86.835,11.68237099]
[1771069543419,0.46794892,86.867,86.836,0.16627725]
[1771069544633,0.46794892,86.875,86.84,3.39924472]
[1771069544827,0.46794892,86.875,86.843,0.16627725]
[1771069545216,55.78,86.878,86.843,0.16627725]
[1771069546424,0.46794892,86.879,86.851,0.16627725]
[1771069546629,0.46794892,86.879,86.845,0.16627725]
[1771069546834,0.46794892,86.879,86.85,3.39924472]
[1771069547029,0.46794892,86.879,86.851,0.16627725]
[1771069549422,0.46794892,86.879,86.852,11.51383963]
[1771069549645,0.46794892,86.879,86.853,0.16627725]
[1771069549826,0.46794892,86.879,86.848,0.16627725]
[1771069550136,0.46794892,86.878,86.848,0.16627725]
[1771069550332,0.1,86.89,86.871,0.16627725]
[1771069550516,0.56794892,86.89,86.865,0.16627725]
[1771069552430,0.56794892,86.89,86.866,11.51198397]
[1771069553219,0.56794892,86.89,86.862,0.16627725]
[1771069553517,0.56794892,86.89,86.87,3.39924472]
[1771069553713,0.1,86.9,86.871,0.06627725]
[1771069553930,0.1,86.9,86.88,3.46552197]
[1771069554829,0.1,86.9,86.881,11.50999643]
[1771069555028,0.1,86.9,86.881,11.57627368]
[1771069555228,0.56794892,86.9,86.864,0.06627725]
[1771069555417,0.56794892,86.9,86.87,3.46552197]
[1771069555619,0.56794892,86.9,86.871,0.06627725]
[1771069555937,0.46794892,86.899,86.863,61.9]
[1771069556135,0.46794892,86.869,86.84,11.51543067]
[1771069556327,0.46794892,86.869,86.816,61.9]
[1771069556328,0.46794892,86.859,86.821,11.51795072]
[1771069556631,0.46794892,86.849,86.807,0.06627725]
[1771069556814,0.46794892,86.839,86.807,0.06627725]
[1771069557217,3.39924472,86.85,86.811,0.06627725]
[1771069557511,3.39924472,86.85,86.801,40.3221161]
[1771069557512,0.46794892,86.849,86.821,0.06627725]
[1771069557716,0.46794892,86.857,86.821,0.06627725]
[1771069558029,11.51158641,86.869,86.831,0.06627725]
[1771069558030,0.46794892,86.868,86.831,0.06627725]
[1771069559035,0.46794892,86.868,86.832,0.06627725]
[1771069560440,0.46794892,86.866,86.832,0.06627725]
[1771069560637,0.46794892,86.859,86.831,40.30818485]
[1771069561141,0.46794892,86.859,86.832,0.06627725]
[1771069565839,0.46794892,86.859,86.832,61.96627725]
[1771069566048,0.46794892,86.859,86.832,61.9]
[1771069569241,0.46794892,86.859,86.833,11.51635898]
[1771069570552,0.4918433,86.884,86.85,3.39924472]
[1771069570734,0.4918433,86.884,86.851,0.06627725]
[1771069571328,0.4918433,86.884,86.851,11.58024945]
[1771069571945,0.4918433,86.879,86.846,11.51451084]
[1771069573054,0.4918433,86.879,86.839,51.14]
[1771069573055,0.4918433,86.859,86.839,62.65545068]
[1771069575450,0.4918433,86.859,86.839,11.51545068]
[1771069575756,0.4918433,86.859,86.828,11.51702215]
[1771069576335,11.51304427,86.858,86.828,11.51702215]
[1771069576657,0.4918433,86.869,86.828,11.51702215]
[1771069576950,0.4918433,86.868,86.828,11.5832994]
[1771069577170,0.4918433,86.868,86.829,0.06627725]
[1771069577340,0.4918433,86.868,86.83,61.9]
[1771069577540,0.4918433,86.868,86.83,61.96627725]
[1771069577857,0.4918433,86.849,86.824,62.69752838]
[1771069578551,0.4918433,86.849,86.824,51.18]
[1771069578753,0.4918433,86.849,86.824,62.69755095]
[1771069578940,0.4918433,86.847,86.824,62.69755095]
[1771069579144,0.4918433,86.839,86.81,51.26]
[1771069579343,0.4918433,86.829,86.806,11.5198346]
[1771069579538,0.4918433,86.829,86.797,11.5210101]
[1771069579749,0.4918433,86.819,86.797,11.5210101]
[1771069579955,0.4918433,86.819,86.788,11.52233027]
[1771069580262,0.4918433,86.819,86.791,0.06627725]
[1771069580650,0.4918433,86.829,86.788,40.39443321]
[1771069581062,0.4918433,86.827,86.791,0.06627725]
[1771069581262,0.4918433,86.827,86.778,40.33280324]
[1771069581562,55.24,86.851,86.778,40.33280324]
[1771069581563,11.51079136,86.875,86.821,0.45827119]
[1771069581858,11.51079136,86.875,86.84,3.39924472]
[1771069582035,3.39924472,86.89,86.841,0.45827119]
[1771069582439,3.39924472,86.89,86.85,3.85751591]
[1771069582655,11.50981188,86.883,86.85,0.45827119]
[1771069582957,11.50981188,86.883,86.86,8.48759534]
[1771069583260,11.50907419,86.888,86.87,8.48759534]
[1771069583561,0.4918433,86.877,86.86,8.48759534]
[1771069583750,1.28884329,86.876,86.86,8.48759534]
[1771069583956,1.28884329,86.876,86.851,11.5139722]
[1771069584158,0.4918433,86.875,86.86,8.48759534]
[1771069584353,0.4918433,86.875,86.84,8.48759534]
[1771069584354,0.4918433,86.874,86.84,8.48759534]
[1771069585065,0.4918433,86.869,86.82,8.48759534]
[1771069585256,0.4918433,86.867,86.821,11.51795072]
[1771069585762,0.4918433,86.866,86.821,11.51795072]
[1771069586259,0.4918433,86.866,86.789,4.61729252]
[1771069586260,0.4918433,86.849,86.81,8.48759534]
[1771069586461,0.4918433,86.849,86.82,8.48759534]
[1771069586847,0.4918433,86.849,86.83,8.48759534]
[1771069588347,0.4918433,86.849,86.82,20.00564079]
[1771069588550,0.4918433,86.847,86.82,8.48759534]
[1771069589684,0.4918433,86.845,86.796,0.45827119]
[1771069589854,0.4918433,86.845,86.8,8.48759534]
[1771069590970,0.4918433,86.845,86.8,8.4993248]
[1771069591350,0.48724816,86.843,86.8,8.4993248]
[1771069592069,0.48724816,86.841,86.8,8.4993248]
[1771069593175,8.4993248,86.84,86.8,8.4993248]
[1771069593382,0.48724816,86.839,86.79,8.4993248]
[1771069594160,40.30493562,86.838,86.79,8.4993248]
[1771069594359,0.48724816,86.836,86.79,8.4993248]
[1771069598977,0.48724816,86.819,86.77,8.4993248]
[1771069600274,0.47446718,86.799,86.761,0.46896939]
[1771069600464,0.47446718,86.799,86.78,8.4993248]
[1771069600667,0.47446718,86.806,86.78,8.4993248]
[1771069601479,0.47446718,86.804,86.78,8.96829419]
[1771069602157,0.47446718,86.804,86.776,11.52382035]
[1771069602364,0.47446718,86.804,86.78,8.4993248]
[1771069604086,0.47446718,86.802,86.78,8.4993248]
[1771069605478,11.5206046,86.801,86.78,8.4993248]
[1771069605680,0.47446718,86.8,86.78,8.4993248]
[1771069606881,55.28,86.807,86.791,0.46896939]
[1771069607065,0.47446718,86.806,86.781,11.52325969]
[1771069607266,0.47446718,86.822,86.8,8.96829419]
[1771069607475,0.47446718,86.844,86.81,8.4993248]
[1771069607673,0.47446718,86.844,86.82,8.4993248]
[1771069608681,0.47446718,86.852,86.83,8.4993248]
[1771069608882,0.47446718,86.85,86.821,0.46896939]
[1771069609085,0.47446718,86.85,86.82,8.4993248]
[1771069609285,0.47446718,86.85,86.812,11.5190566]
[1771069609486,0.47446718,86.85,86.82,8.4993248]
[1771069609869,0.47446718,86.85,86.83,8.4993248]
[1771069610671,0.47446718,86.85,86.812,40.31691864]
[1771069610672,0.47446718,86.85,86.82,8.4993248]
[1771069610871,0.47446718,86.847,86.803,50.9]
[1771069611087,0.47446718,86.847,86.81,8.4993248]
[1771069611993,0.47446718,86.845,86.81,8.4993248]
[1771069612176,0.47446718,86.845,86.803,50.9]
[1771069612380,0.47446718,86.839,86.792,11.52177755]
[1771069612584,0.47446718,86.829,86.78,8.4993248]
[1771069612775,0.47446718,86.829,86.79,8.4993248]
[1771069613403,0.47446718,86.827,86.79,8.4993248]
[1771069613869,0.47446718,86.827,86.781,0.46896939]
[1771069614174,0.47446718,86.825,86.781,11.52325969]
[1771069614375,0.47446718,86.825,86.79,8.4993248]
[1771069614901,0.47446718,86.825,86.791,0.46896939]
[1771069616186,0.47446718,86.823,86.79,8.4993248]
[1771069616490,0.47446718,86.823,86.782,11.52312547]
[1771069616688,0.47446718,86.823,86.78,8.4993248]
[1771069616894,0.47446718,86.819,86.78,8.4993248]
[1771069617793,0.47446718,86.819,86.77,8.96829419]
[1771069618092,0.47446718,86.817,86.772,11.52440744]
[1771069618293,0.47446718,86.817,86.78,8.4993248]